[Event "1st Henriquez Urena Memorial 2022"]
[Site "Santo Domingo"]
[Date "2022.09.21"]
[Round "8.4"]
[White "Araujo Sanchez, Josue"]
[Black "Michelen Rodriguez, Victor Isaac"]
[Result "1/2-1/2"]
[ECO "D02"]
[WhiteElo "2281"]
[BlackElo "2228"]
[Annotator "TA"]
[PlyCount "125"]
[EventDate "2022.09.16"]
[EventType "swiss"]
[EventCountry "DOM"]
[SourceTitle "playchess.com"]
[Source "ChessBase"]
[SourceQuality "1"]
[TimeControl "5400+30"]

{[%evp 9,125,-14,0,7,4,6,26,20,22,20,29,40,59,53,60,56,53,21,49,58,39,46,48,35,73,70,71,71,65,64,64,48,52,50,50,53,54,58,52,48,48,-13,-6,-12,-11,-5,-7,-37,25,25,25,25,25,25,25,25,25,12,25,25,25,0,0,0,0,0,0,0,6,0,0,0,0,0,0,0,0,0,0,0,0,0,0,0,0,0,0,0,0,0,0,0,0,0,0,0,0,0,0,0,0,0,0,0,0,0,0,0,0,0,0,0,0,0,0,0,0,0]} 1. Nf3 {[%emt 0:08:30]} Nf6 {[%emt 0:01:50]} 2. d4 {[%emt 0:00:19]} d5 {[%emt 0:00:16]} 3. c3 {[%emt 1:23:11]} c6 {[%emt 0:00:39]} 4. Qc2 {[%emt 0:01:00]} g6 {[%emt 0:00:09]} 5. Bf4 {[%emt 0:00:10]} Bf5 {[%emt 0:00:52]} 6. Qb3 {[%emt 0:00:11] D02: 1 d4 d5 2 Nf3 sidelines, including 2...Nf6 3 g3 and 2...Nf6 3 Bf4.} Qb6 {[%emt 0:00:28]} 7. h3 {[%emt 0:01:46]} Nbd7 {[%emt 0:02:32]} 8. g4 {[%emt 0:00:26] White has an edge.} Bxb1 {[%emt 0:00:18]} 9. Rxb1 {[%emt 0:00:14]} Qxb3 {[%emt 0:00:03]} (9... Ne4 {seems wilder.} 10. e3 h5 11. g5 Bg7) 10. axb3 {[%emt 0:00:13]} Bg7 {[%emt 0:03:41]} 11. e3 {[%emt 0:00:42] [#]} O-O $146 {[%emt 0:05:17]} ({Predecessor:} 11... h5 12. Rg1 O-O 13. Bd3 Rfe8 14. gxh5 Nxh5 15. Be5 Bxe5 16. dxe5 e6 17. Ke2 Kg7 {1-0 (52) Yurtseven,M (2400)-Altun,A (2359) Antalya 2021}) 12. Bd3 {[%emt 0:01:17]} Rfe8 {[%emt 0:06:39]} 13. c4 {[%emt 0:02:36]} Ne4 {[%emt 0:05:12]} 14. cxd5 {[%emt 0:01:24]} cxd5 {[%emt 0:00:04]} 15. Bb5 {[%emt 0:00:56]} Red8 {[%emt 0:00:55]} 16. Ke2 {[%emt 0:00:36]} Nf8 {[%emt 1:09:35][%cal Bd7f8,Bf8e6,Be6d8,Bd8c6][%mdl 32]} 17. Rbc1 {[%emt 0:01:20]} a6 {[%emt 0:00:28]} 18. Bd3 {[%emt 0:00:22]} Ne6 {[%emt 0:00:22]} 19. Bh2 {[%emt 0:01:16]} Rdc8 {[%emt 0:16:53]} 20. Ne5 {[%emt 0:00:59]} Bxe5 {[%emt 0:04:08]} 21. Bxe5 {[%emt 0:03:36]} f6 {[%emt 0:01:56]} 22. Bh2 {[%emt 0:00:10]} Nd8 {[%emt 0:02:18]} 23. f3 {[%emt 1:13:33]} Ng5 {[%emt 0:01:36]} 24. h4 {[%emt 0:01:20]} Ngf7 {[%emt 0:01:24]} 25. Rc5 {[%emt 0:03:05]} ({Better is} 25. Rhd1 $14) 25... Rxc5 $11 {[%emt 0:02:00]} 26. dxc5 {[%emt 0:00:07]} Rc8 {[%emt 0:00:11]} 27. Rc1 {[%emt 0:00:40]} Nc6 {[%emt 0:03:54]} 28. Bg1 {[%emt 0:01:04]} e5 {[%emt 0:03:43]} (28... Nb4 $15) 29. e4 {[%emt 0:03:04]} d4 {[%emt 0:11:10]} 30. Bf2 {[%emt 0:03:56]} Nfd8 {[%emt 0:08:03]} 31. Bc4+ {[%emt 0:00:35]} Kf8 {[%emt 0:00:19]} 32. Be1 {[%emt 0:00:29]} Ke7 {[%emt 0:00:18]} 33. b4 {[%emt 0:01:53]} Ne6 {[%emt 0:00:12]} 34. Bd2 {[%emt 0:00:07]} Nf4+ {[%emt 0:09:29]} 35. Bxf4 {[%emt 0:09:03]} exf4 {[%emt 0:00:03][%mdl 4096] Endgame KRB-KRN. The position is equal.} 36. Bd5 {[%emt 0:53:43]} Nxb4 {[%emt 0:02:16] Hoping for ...b6.} 37. Bxb7 {[%emt 0:00:32]} Rc7 {[%emt 0:00:34]} 38. Bd5 {[%emt 0:01:40]} a5 {[%emt 0:00:07]} 39. Rc4 {[%emt 0:05:09]} h6 {[%emt 0:03:01]} 40. Kd2 {[%emt 0:02:10]} g5 {[%emt 0:02:08]} 41. h5 {[%emt 0:01:39]} Kd7 {[%emt 0:00:57]} 42. b3 {[%emt 0:03:04]} Ke7 {[%emt 0:00:37]} 43. c6 {[%emt 0:05:19]} (43. Rxd4 Rxc5 44. Bc4 Nc6 $17) 43... Kd6 {[%emt 0:00:11][%csl LRc6,LRd5] Inhibits Rc5.} 44. Rxd4 {[%emt 0:37:57]} Nxc6 {[%emt 0:00:15]} 45. Bxc6+ {[%emt 0:04:17]} Kxc6 {[%emt 0:00:01] KR-KR} 46. Rd5 {[%emt 0:06:44]} Rd7 {[%emt 0:00:15]} 47. Rxd7 {[%emt 0:00:08]} Kxd7 {[%emt 0:00:01] KP-KP} 48. Kd3 {[%emt 0:00:16]} Kc7 $1 {[%emt 0:00:46]} 49. Kc3 {[%emt 0:07:24]} Kb6 {[%emt 0:01:16]} 50. Kc4 {[%emt 0:14:17] [#] Threatens to win with Kd5.} Kc6 {[%emt 0:00:08]} 51. Kd4 {[%emt 0:03:15] Black must now prevent Kc4.} Kd6 {[%emt 0:00:59]} 52. Kc4 {[%emt 0:00:08] Kb5 is the strong threat.} Kc6 {[%emt 0:00:05]} 53. b4 {[%emt 0:00:25]} axb4 {[%emt 0:02:48]} 54. Kxb4 {[%emt 0:00:13]} Kb6 {[%emt 0:00:01]} 55. Kc3 {[%emt 0:02:19]} Kc7 {[%emt 0:00:15]} (55... Kc5 $5) 56. Kb3 {[%emt 0:00:36]} Kb7 {[%emt 0:00:07]} 57. Kc4 {[%emt 0:00:24] [#] White threatens Kd5 and mate.} Kc6 {[%emt 0:00:04]} 58. Kd4 {[%emt 0:01:30]} Kd6 {[%emt 0:00:06] Against e5+} 59. Kc3 {[%emt 0:00:33]} Kc7 {[%emt 0:00:07]} 60. Kd2 {[%emt 0:00:16]} Kd8 {[%emt 0:00:28]} 61. Ke2 {[%emt 0:00:33]} Ke8 {[%emt 0:00:11]} 62. Kd2 {[%emt 0:00:30]} Kd8 {[%emt 0:00:18]} 63. Kc3 {[%emt 0:00:20] Weighted Error Value: White=0.05 (flawless) /Black=0.05 (flawless)} 1/2-1/2

[Event "1st Henriquez Urena Memorial 2022"]
[Site "Santo Domingo"]
[Date "2022.09.22"]
[Round "8.5"]
[White "Leon Hoyos, Manuel"]
[Black "Crispin Ferreras, Darvi Abraham"]
[Result "1-0"]
[ECO "A25"]
[WhiteElo "2491"]
[BlackElo "2160"]
[Annotator "TA"]
[PlyCount "83"]
[EventDate "2022.09.16"]
[EventType "swiss"]
[EventCountry "DOM"]
[SourceTitle "playchess.com"]
[Source "ChessBase"]
[SourceQuality "1"]
[TimeControl "5400+30"]

{[%evp 12,83,27,4,62,39,46,41,24,31,31,28,56,23,22,24,25,16,25,15,25,25,23,0,10,0,31,4,37,14,32,17,78,77,139,139,153,154,305,312,292,318,294,318,360,356,564,550,480,372,379,375,389,254,382,241,227,229,233,206,224,222,218,128,219,230,281,264,518,501,589,597,531,529]} 1. c4 {[%emt 0:04:36]} e5 {[%emt 0:04:04]} 2. g3 {[%emt 0:00:05]} Nf6 {[%emt 0:00:26]} 3. Bg2 {[%emt 0:00:06]} Nc6 {[%emt 0:03:16]} 4. Nc3 {[%emt 0:00:33]} Bc5 {[%emt 0:01:26]} 5. e3 {[%emt 0:01:05]} O-O {[%emt 0:03:57]} 6. Nge2 {[%emt 0:00:26]} Re8 {[%emt 0:00:28]} 7. O-O {[%emt 0:00:30]} Bf8 {[%emt 0:06:40] A25: English Opening vs King's Indian with ...Nc6 but without early d3.} (7... Bb6 $11) 8. h3 {[%emt 0:04:07]} d6 {[%emt 0:02:13]} 9. d4 {[%emt 0:01:01]} exd4 {[%emt 0:01:01] White is slightly better.} 10. exd4 {[%emt 0:00:27]} g6 {[%emt 0:11:09]} 11. g4 {[%emt 0:03:33][%cal Bg3g4,Bg4g5][%mdl 32]} Bg7 {[%emt 0:00:27]} 12. Be3 {[%emt 0:01:01] [#]} h5 $146 {[%emt 0:11:06]} ({Predecessor:} 12... Ne7 13. Nf4 c6 14. Qd2 Qa5 15. a3 Qa6 16. b3 Rb8 17. a4 Nd7 18. Rad1 Qa5 {1-0 (38) Kourkounakis,I (2400)-Papamattheou,T Kavala 1995}) 13. g5 {[%emt 0:00:52]} Nh7 {[%emt 0:00:07]} 14. Qd2 {[%emt 0:00:44]} Ne7 {[%emt 0:00:31]} 15. f4 {[%emt 0:01:06]} Nf5 {[%emt 0:00:24]} 16. Bf2 {[%emt 0:00:05]} c6 {[%emt 0:00:15]} 17. b4 {[%emt 0:08:29]} Bd7 {[%emt 0:10:29]} 18. a4 {[%emt 0:02:05]} a6 {[%emt 0:00:31]} (18... Be6 $5 {[%cal Re6c4]}) 19. Rab1 {[%emt 0:01:33]} Re7 {[%emt 0:02:29]} 20. Rbe1 {[%emt 0:09:47]} Qf8 {[%emt 0:02:47]} 21. Ne4 {[%emt 0:00:36]} Rae8 {[%emt 0:00:33]} (21... Be6 $11) 22. N2c3 $16 {[%emt 0:00:30] White now steadily converts the win.} b5 {[%emt 0:14:44] [#]} ({Better is} 22... b6) 23. axb5 $1 {[%emt 0:00:43]} axb5 {[%emt 0:00:10]} 24. cxb5 {[%emt 0:00:21]} Rb8 $2 {[%emt 0:12:22]} (24... d5 $16 {keeps fighting.}) 25. bxc6 $18 {[%emt 0:00:44]} Bxc6 {[%emt 0:00:02]} 26. Nf6+ {[%emt 0:01:10]} Bxf6 {[%emt 0:00:39]} 27. Bxc6 {[%emt 0:00:05]} Bg7 {[%emt 0:00:54]} 28. Nd5 {[%emt 0:02:45]} Qc8 {[%emt 0:07:52]} (28... Ra7 {was called for.} 29. b5 Qc8) 29. Nxe7+ {[%emt 0:07:44]} Nxe7 {[%emt 0:00:07]} 30. Bg2 {[%emt 0:00:06]} Nf5 {[%emt 0:00:15]} 31. Rc1 {[%emt 0:03:42]} Qd8 {[%emt 0:01:01]} 32. Rc4 {[%emt 0:02:13] d5 is the strong threat.} Nf8 {[%emt 0:00:20]} (32... d5 {might work better.}) 33. Rfc1 {[%emt 0:01:03] Strongly threatening d5.} d5 {[%emt 0:02:19]} 34. Rc5 {[%emt 0:01:02]} Ne7 {[%emt 0:00:02]} 35. h4 {[%emt 0:11:21]} Ne6 {[%emt 0:00:07]} 36. Bh3 {[%emt 0:00:15]} ({Resist} 36. Ra5 $6 Qd6) 36... Qd6 {[%emt 0:00:56]} 37. Be3 {[%emt 0:00:33]} (37. Kh2 $18) 37... Rb6 {[%emt 0:01:09]} (37... Qb6 $16 38. Bf2 (38. Bxe6 Qxe6 39. Bf2 Bf8 $16) 38... Nxc5 39. bxc5 Qc7) 38. b5 {[%emt 0:03:11]} Kh7 {[%emt 0:01:27]} 39. Qf2 {[%emt 0:01:24] aiming for f5.} Qb8 $2 {[%emt 0:00:23] [#]} (39... Kg8 40. Kh1 Rb8) 40. f5 {[%emt 0:00:47][%cal Bf4f5,Bf5f6][%mdl 32] White is clearly winning.} ({Weaker is} 40. Bxe6 Rxe6 41. R1c3 Rxe3 42. Qxe3 Nf5 $11) 40... Nxc5 {[%emt 0:00:34]} 41. dxc5 {[%emt 0:00:29]} Rxb5 {[%emt 0:00:25]} 42. f6 {[%emt 0:00:02] Weighted Error Value: White=0.24 (precise) /Black=0.48} 1-0

[Event "1st Henriquez Urena Memorial 2022"]
[Site "Santo Domingo"]
[Date "2022.09.21"]
[Round "8.6"]
[White "Orizondo, Hugo"]
[Black "Ferreira Fernandez, Sergio"]
[Result "1/2-1/2"]
[ECO "D78"]
[WhiteElo "2034"]
[BlackElo "2119"]
[Annotator "TA"]
[PlyCount "56"]
[EventDate "2022.09.16"]
[EventType "swiss"]
[EventCountry "DOM"]
[SourceTitle "playchess.com"]
[Source "ChessBase"]
[SourceQuality "1"]
[TimeControl "5400+30"]

{[%evp 14,56,0,5,40,37,38,30,65,53,68,64,101,62,57,0,0,0,-23,-60,-68,-70,-54,-119,-54,-133,-73,-110,-70,-70,-70,-70,-58,-58,-58,-58,-58,-93,-58,-58,-58,-58,-58,-58,-60]} 1. d4 {[%emt 1:31:00]} Nf6 {[%emt 0:19:15]} 2. c4 {[%emt 0:00:00]} g6 {[%emt 0:00:30]} 3. Nf3 {[%emt 0:00:00]} Bg7 {[%emt 0:00:05]} 4. g3 {[%emt 0:00:00]} O-O {[%emt 0:00:11]} 5. Bg2 {[%emt 0:00:00]} d5 {[%emt 0:00:26]} 6. O-O {[%emt 0:00:00]} c6 {[%emt 0:04:24] The main line 6...c6 scores better than 6...dxc4.} 7. Qb3 {[%emt 0:00:00]} Qb6 {[%emt 0:01:32]} 8. Nc3 {[%emt 0:00:00]} e6 {[%emt 0:04:16] D78: Fianchetto Grünfeld: 6 0-0 c6.} 9. c5 {[%emt 0:00:00]} Qxb3 {[%emt 0:27:23]} 10. axb3 {[%emt 0:00:00]} Nbd7 {[%emt 0:00:14][%cal Oe6e5] White has an edge.} 11. b4 {[%emt 0:00:00] White is more active.} Re8 {[%emt 0:15:21]} 12. Bf4 {[%emt 0:00:00] Prevents e5.} Nh5 {[%emt 0:04:10] [#]} 13. e3 $146 {[%emt 0:00:00]} ({Predecessor:} 13. Bd6 e5 14. e3 e4 15. Nd2 Bf8 16. Bxf8 Nxf8 17. b5 Bd7 18. Ra3 Nf6 19. Rfa1 cxb5 20. Rxa7 Rxa7 21. Rxa7 {1-0 (28) Pinheiro,J (2330)-Jesus,J Lisbon 2014}) 13... Nxf4 {[%emt 0:10:32]} 14. exf4 {[%emt 0:06:30]} (14. gxf4 $14 f6 15. Rfe1) 14... f6 $11 {[%emt 0:00:07][%cal Bf7f6,Bf6f5][%mdl 32]} 15. Rfe1 {[%emt 0:00:00]} e5 {[%emt 0:00:26]} 16. Re3 {[%emt 0:07:30]} (16. Bh3 {seems wilder.} e4 17. f5 h5 18. fxg6 Ne5 19. Nxe5 fxe5 20. Bxc8 Rexc8 21. dxe5 Bxe5 22. f4) 16... e4 {[%emt 0:00:12]} 17. Nd2 {[%emt 0:00:00][%cal Bf3d2,Bd2f1,Bf1e3][%mdl 32]} f5 {[%emt 0:00:07]} 18. Ne2 {[%emt 0:00:00]} (18. Nf3 $15) 18... a6 {[%emt 0:00:19]} (18... Nf8 $17 19. Rea3 Ne6) 19. h4 {[%emt 0:00:00]} (19. Nf3 $1 $15) 19... Nf6 {[%emt 0:00:39]} ({Black should try} 19... Nf8 20. Rea3 Ne6) 20. Bh3 {[%emt 0:00:00]} h5 {[%emt 0:00:10]} 21. Nf1 {[%emt 0:00:00]} Be6 {[%emt 0:01:21]} 22. Rc3 {[%emt 0:00:00]} Rad8 {[%emt 0:09:50]} 23. Ne3 {[%emt 0:00:00]} Nh7 {[%emt 0:00:37][%cal Bf6h7,Bh7f8,Bf8e6][%mdl 32]} 24. Kf1 {[%emt 0:00:00]} Nf8 {[%emt 0:00:22]} 25. Ke1 {[%emt 0:00:00]} Bc8 {[%emt 0:00:15]} 26. Nc2 {[%emt 0:00:00] Black is slightly better.} Ne6 {[%emt 0:02:12]} 27. Kd2 {[%emt 0:00:00]} Bd7 {[%emt 0:00:08]} 28. Ke3 {[%emt 0:00:00]} Kf7 {[%emt 0:01:48] Weighted Error Value: White=0.18 (very precise) /Black=0.17 (very precise)} 1/2-1/2

[Event "1st Henriquez Urena Memorial 2022"]
[Site "Santo Domingo"]
[Date "2022.09.22"]
[Round "8.7"]
[White "Subervi, Jonathan Sigfredo"]
[Black "Mesa Cruz, Juan Carlos"]
[Result "0-1"]
[ECO "B23"]
[WhiteElo "2124"]
[BlackElo "2119"]
[Annotator "TA"]
[PlyCount "124"]
[EventDate "2022.09.16"]
[EventType "swiss"]
[EventCountry "DOM"]
[SourceTitle "playchess.com"]
[Source "ChessBase"]
[SourceQuality "1"]
[TimeControl "5400+30"]

{[%evp 9,124,19,25,-13,-10,-79,-82,-74,-83,-83,-81,-73,-79,-72,-56,-60,-64,-55,-57,-67,-63,-55,-65,-58,-49,-59,-57,-57,-58,-60,-40,-50,-18,-18,-18,-24,-21,-22,0,0,1,0,2,2,2,2,2,2,2,2,8,7,13,2,2,2,2,2,8,8,18,25,47,47,47,47,47,47,47,47,74,74,74,74,74,74,76,74,74,55,114,76,76,74,114,114,114,114,114,114,114,0,0,0,0,0,0,-8,-8,-8,0,0,0,0,0,0,0,0,0,-29985,-29986,-29986,-29987,-29987,-29988,-29988,-29989]} 1. e4 {[%emt 0:10:22]} c5 {[%emt 0:00:29]} 2. Nc3 {[%emt 0:00:40]} Nc6 {[%emt 0:01:06]} 3. Bb5 {[%emt 0:00:13]} g6 {[%emt 0:07:00]} 4. Bxc6 {[%emt 0:00:11]} bxc6 {[%emt 0:00:13]} 5. d3 {[%emt 0:00:08]} Bg7 {[%emt 0:00:48]} 6. Be3 {[%emt 0:01:07] B23: Closed Sicilian: Lines without g3.} Rb8 {[%emt 0:01:13]} 7. Rb1 {[%emt 0:01:02] [#]} (7. Nge2 $11) 7... Rxb2 $1 $17 {[%emt 0:18:44]} 8. Nge2 {[%emt 0:00:30] Black is better.} Rxb1 {[%emt 0:00:30] Black is more active.} 9. Qxb1 {[%emt 0:00:30]} d6 {[%emt 0:07:52]} 10. Qb8 {[%emt 0:00:53]} Qd7 {[%emt 0:00:47]} 11. O-O {[%emt 0:00:50]} Nf6 {[%emt 0:03:19]} 12. e5 {[%emt 0:03:53]} Nd5 {[%emt 0:10:34]} 13. Nxd5 {[%emt 0:00:31]} cxd5 {[%emt 0:00:11]} 14. exd6 {[%emt 0:00:25] [#]} exd6 $146 {[%emt 0:00:26]} ({Predecessor:} 14... d4 15. Bg5 f6 16. Bd2 O-O 17. dxe7 Qxe7 18. Re1 Bg4 19. Qb3+ Qf7 20. Ng3 c4 {0-1 (48) Matosec,T (2117)-Krebs,J (2248) Austria 2018}) 15. Bf4 {[%emt 0:03:07]} O-O {[%emt 0:01:17]} 16. Bxd6 {[%emt 0:04:28]} Re8 {[%emt 0:03:12]} 17. Nf4 {[%emt 0:00:55]} Bb7 {[%emt 0:08:27]} 18. Qc7 {[%emt 0:01:28]} Qxc7 {[%emt 0:00:05]} 19. Bxc7 {[%emt 0:00:14]} c4 {[%emt 0:03:10]} 20. h4 {[%emt 0:00:35]} cxd3 {[%emt 0:03:00]} 21. cxd3 {[%emt 0:00:21]} Rc8 {[%emt 0:00:15]} 22. Bd6 {[%emt 0:00:14]} Rc6 {[%emt 0:03:37]} 23. Bb8 {[%emt 0:02:48]} a5 {[%emt 0:04:30]} 24. Rb1 {[%emt 0:02:34]} Ba6 {[%emt 0:03:52]} 25. Nxd5 {[%emt 0:03:10] Hoping for Ne7+.} Bxd3 {[%emt 0:05:48]} 26. Rd1 {[%emt 0:05:42] Black must now prevent Ne7+.} Be2 {[%emt 0:01:15] A strong pair of Bishops.} 27. Ne7+ {[%emt 0:22:46]} Kf8 {[%emt 0:00:17]} 28. Nxc6 {[%emt 0:04:46][%cal Rd1d8]} Bxd1 {[%emt 0:00:04]} 29. Nxa5 $11 {[%emt 0:00:34][%mdl 4096] Endgame KBB-KBN} Ke8 {[%emt 0:00:48]} 30. Nc4 {[%emt 0:05:46]} Kd7 {[%emt 0:01:52]} 31. Be5 {[%emt 0:00:37]} Bf8 {[%emt 0:00:24]} 32. Bd4 {[%emt 0:01:45]} Ke6 {[%emt 0:00:52]} 33. Ne3 {[%emt 0:00:29]} Be2 {[%emt 0:00:23]} 34. a4 {[%emt 0:02:48]} Bh6 {[%emt 0:00:15]} 35. f3 {[%emt 0:01:21]} Bxe3+ {[%emt 0:00:20]} 36. Bxe3 {[%emt 0:00:03] KB-KB} h5 {[%emt 0:00:17]} 37. Kf2 {[%emt 0:00:19]} Ba6 {[%emt 0:00:13]} 38. Bd4 {[%emt 0:05:51]} Kf5 {[%emt 0:00:11]} 39. a5 {[%emt 0:00:23]} f6 {[%emt 0:00:24]} 40. Ke3 {[%emt 0:00:47]} g5 {[%emt 0:00:29]} 41. g3 {[%emt 0:01:18]} Bb7 {[%emt 0:00:32]} 42. Bb6 {[%emt 0:01:02]} Ba6 {[%emt 0:00:11]} 43. Bc7 {[%emt 0:00:14]} Bb7 {[%emt 0:00:08]} 44. Bd6 {[%emt 0:05:00]} Ba6 {[%emt 0:00:08]} ({Black should try} 44... Ke6 $14 45. Ba3 Kf5) 45. Be7 {[%emt 0:06:18]} Bb7 {[%emt 0:00:31]} 46. Bd8 {[%emt 0:00:30]} Ba6 {[%emt 0:00:16]} 47. Kd4 {[%emt 0:02:01]} gxh4 {[%emt 0:03:55]} 48. gxh4 {[%emt 0:00:07]} Ke6 {[%emt 0:01:28]} 49. Kc5 {[%emt 0:00:18]} f5 {[%emt 0:00:47]} 50. Kc6 {[%emt 0:01:04]} (50. Bg5 $16) 50... f4 $1 {[%emt 0:01:19]} 51. Bg5 {[%emt 0:00:23]} Kf5 {[%emt 0:00:15]} 52. Kc7 {[%emt 0:01:57]} Be2 {[%emt 0:00:14]} 53. Kb6 {[%emt 0:01:07]} Bxf3 {[%emt 0:00:15] ...Ba8 is the strong threat.} 54. Kc5 {[%emt 0:00:03]} Ba8 {[%emt 0:01:06] Threatens to win with ...Ke4.} 55. Kd4 {[%emt 0:00:11]} Kg4 {[%emt 0:00:04]} 56. a6 {[%emt 0:00:39]} f3 {[%emt 0:00:57]} (56... Kg3 $5 57. Ke5 $8 f3 $11) 57. Be3 {[%emt 0:01:01]} Kxh4 {[%emt 0:01:31]} (57... Kg3 $5 58. Ke5 $8 (58. a7 $2 f2 $19) 58... f2 59. Bxf2+ Kxf2 $11) 58. Bf2+ {[%emt 0:00:07]} Kg4 {[%emt 0:00:39] ( -> ...h4)} 59. Kd3 $2 {[%emt 0:01:02][%mdl 8192] [#]} (59. Ke3 $11) 59... h4 {[%emt 0:00:22][%cal Bh5h4,Bh4h3][%mdl 32] Black mates.} 60. Bc5 {[%emt 0:00:30]} Kg3 {[%emt 0:00:50]} 61. Kd2 {[%emt 0:00:12]} Kg2 {[%emt 0:00:21]} 62. Ke1 {[%emt 0:00:06]} h3 {[%emt 0:00:05] Weighted Error Value: White=0.20 (precise) /Black=0.05 (flawless)} 0-1

[Event "1st Henriquez Urena Memorial 2022"]
[Site "Santo Domingo"]
[Date "2022.09.22"]
[Round "8.8"]
[White "Dominguez, Jose Manuel"]
[Black "Polanco Nunez, Yoel Starling"]
[Result "1/2-1/2"]
[ECO "B86"]
[WhiteElo "2180"]
[BlackElo "2199"]
[Annotator "TA"]
[PlyCount "112"]
[EventDate "2022.09.16"]
[EventType "swiss"]
[EventCountry "DOM"]
[SourceTitle "playchess.com"]
[Source "ChessBase"]
[SourceQuality "1"]
[TimeControl "5400+30"]

{[%evp 15,112,-11,-24,-13,-4,-13,-16,-30,-25,-20,28,32,27,18,125,125,114,118,140,141,149,146,149,96,89,64,59,63,70,-37,-23,-25,-43,-39,-25,-11,-15,-9,0,-19,-2,-8,0,-10,12,7,19,12,33,0,0,0,34,27,52,17,15,20,132,110,147,140,153,165,160,152,554,568,576,457,771,752,916,872,988,918,758,721,505,424,392,0,0,0,0,0,0,0,0,0,0,0,0,0,0,0,0,0,392]} 1. e4 {[%emt 0:06:11]} c5 {[%emt 0:00:11]} 2. Nf3 {[%emt 0:00:09]} d6 {[%emt 0:00:02]} 3. d4 {[%emt 0:00:11]} cxd4 {[%emt 0:00:02]} 4. Nxd4 {[%emt 0:00:07]} Nf6 {[%emt 0:00:06]} 5. Nc3 {[%emt 0:00:06]} e6 {[%emt 0:00:23]} 6. Bc4 {[%emt 0:03:35]} a6 {[%emt 0:03:10]} 7. Bb3 {[%emt 0:02:06] 7.Be3 is the fancy move.} Nbd7 {[%emt 0:01:09][%cal Bb8d7,Bd7c5,Bc5b3][%mdl 32]} 8. g4 {[%emt 0:18:23]} Nc5 {[%emt 0:03:59]} 9. Qe2 {[%emt 0:04:14] B86: Sicilian Scheveningen/Najdorf: 6 Bc4, without early ...b5.} d5 {[%emt 0:07:16][%cal Rf6e4] [#]} 10. exd5 $146 {[%emt 0:36:40]} ({Predecessor:} 10. e5 Nfe4 11. Nxe4 dxe4 12. Be3 Qc7 13. f4 exf3 14. Qxf3 Be7 15. O-O-O O-O 16. Qg3 b5 {0-1 (29) Lind,J (2240)-Swiercz,D (2656) Gjakova 2016}) 10... Nxb3 {[%emt 0:00:15]} 11. Nxb3 {[%emt 0:00:44]} (11. axb3 {with more complications.} Nxd5 12. O-O Bc5 13. Nxd5 Qxd5 14. Rd1) 11... Nxd5 {[%emt 0:26:57]} 12. Bd2 {[%emt 0:00:57][%cal Bc1d2,Bd2a5,Ba5c3][%mdl 32]} Be7 {[%emt 0:14:37]} (12... b5 $142) 13. O-O-O $11 {[%emt 0:00:47]} O-O {[%emt 0:04:49]} 14. Kb1 {[%emt 0:02:57]} a5 {[%emt 0:07:45]} (14... b6 $11 {keeps the balance.}) 15. Nxd5 $16 {[%emt 0:03:17]} exd5 {[%emt 0:00:02]} 16. Bxa5 {[%emt 0:00:19]} b6 {[%emt 0:03:57]} 17. Bc3 {[%emt 0:04:24]} Ba6 {[%emt 0:01:38]} 18. Qf3 {[%emt 0:00:20] White is much more active.} ({Don't do} 18. Qe5 $6 Bf6 19. Qg3 (19. Qxd5 Qxd5 20. Rxd5 Bb7 $17) 19... Bc4 $16) 18... Bc4 {[%emt 0:00:26]} 19. Nc1 {[%emt 0:00:06]} (19. Rhe1 $142) 19... Qc7 {[%emt 0:07:31][%cal Oc4a2]} 20. h4 {[%emt 0:01:24]} ({Don't play} 20. b3 Ba6 $14) 20... Rfc8 {[%emt 0:01:08][%cal Od5d4]} 21. g5 {[%emt 0:00:51]} b5 {[%emt 0:02:37][%cal Bb6b5,Bb5b4][%mdl 32] Hoping for ...b4.} 22. Rhe1 {[%emt 0:01:56]} (22. b3 $1 $14) 22... b4 $15 {[%emt 0:00:26]} 23. Rxe7 $1 {[%emt 0:07:47]} Qxe7 {[%emt 0:00:02]} 24. Bd4 {[%emt 0:00:39]} Qe4 {[%emt 0:00:44]} 25. Qxe4 {[%emt 0:00:59] Really sharp!} dxe4 {[%emt 0:00:02]} 26. b3 {[%emt 0:00:40]} Be6 {[%emt 0:01:15]} 27. Be3 $1 {[%emt 0:00:26]} Rd8 {[%emt 0:01:35]} 28. Rg1 {[%emt 0:00:05]} Rd5 {[%emt 0:00:32]} 29. Kb2 {[%emt 0:02:25]} Rad8 {[%emt 0:12:24]} 30. Ne2 {[%emt 0:00:45][%mdl 1024] White has compensation.} Bf5 {[%emt 0:00:00]} 31. Ng3 {[%emt 0:00:48]} g6 {[%emt 0:00:00][%cal Of7f6]} 32. Bb6 {[%emt 0:00:49]} R8d6 {[%emt 0:00:00]} 33. Be3 {[%emt 0:00:33]} Rd7 {[%emt 0:00:00][%cal Of7f6]} 34. Ra1 {[%emt 0:00:55]} Rd1 {[%emt 0:00:00]} 35. Rxd1 {[%emt 0:00:04]} Rxd1 $14 {[%emt 0:00:00][%mdl 4096] Endgame KRB-KBN} 36. Bc5 {[%emt 0:01:51]} Rd2 {[%emt 0:00:00] [#]} (36... Rg1 $1 $11) 37. Kc1 $1 $16 {[%emt 0:00:03]} e3 {[%emt 0:01:20]} 38. Nxf5 {[%emt 0:00:08]} exf2 {[%emt 0:01:25]} 39. Ng3 {[%emt 0:00:31]} Re2 {[%emt 0:00:08][%cal Of7f6]} 40. Bxb4 {[%emt 0:00:42] a4 is the strong threat.} Re3 $2 {[%emt 0:00:30] [#]} (40... f5 $16) 41. Bc5 $1 $18 {[%emt 0:00:46]} Rxg3 {[%emt 0:01:13]} 42. Bxf2 {[%emt 0:00:03] KR-KB} Rf3 {[%emt 0:00:38]} (42... Rg2 $142) 43. Bc5 {[%emt 0:00:12]} f5 {[%emt 0:00:36]} 44. a4 {[%emt 0:00:30]} Kf7 {[%emt 0:00:50]} 45. a5 {[%emt 0:00:07] Black must now prevent a6.} Rc3 {[%emt 0:00:22]} 46. Bb6 {[%emt 0:02:31]} Ke6 {[%emt 0:00:09]} 47. a6 {[%emt 0:00:36]} Kd7 {[%emt 0:00:29]} 48. a7 $2 {[%emt 0:00:15]} ({White has to play} 48. b4 $18 Kc6 49. Bd4) 48... Rc8 $11 {[%emt 0:00:03] The position is equal.} 49. Be3 {[%emt 0:00:47]} Kc6 {[%emt 0:00:15]} 50. c4 {[%emt 0:00:24]} Kb7 {[%emt 0:00:11]} 51. Kd2 {[%emt 0:00:46]} Rd8+ {[%emt 0:01:06]} 52. Kc3 {[%emt 0:00:46]} Re8 {[%emt 0:00:02]} 53. Kd3 {[%emt 0:00:29]} Rd8+ {[%emt 0:00:16]} 54. Kc3 {[%emt 0:01:11]} Re8 {[%emt 0:00:09]} 55. Kd3 {[%emt 0:00:05]} Rd8+ {[%emt 0:00:01]} 56. Kc3 {[%emt 0:02:00]} Ra8 $2 {[%emt 0:03:47][%mdl 40960] Weighted Error Value: White=0.17 (very precise) /Black=0.25 (precise) . An unexpected result.} (56... Re8 $11 57. Kd3) 1/2-1/2